bitfinex-derivatives/quotes_ETHF0:USTF0_20250417
["timestamp","ask_amount","ask_price","bid_price","bid_amount"]
[1744922527287,9.04305834,1583.3,1583.2,1.26323]
[1744922527592,4.04305834,1583.3,1583.2,1.26323]
[1744922527797,2.77990834,1583.3,1583.2,1.26323]
[1744922528091,0.81480834,1583.3,1583.2,5.18763]
[1744922528291,0.81480834,1583.3,1583.2,5.26263]
[1744922531593,0.00947538,1583.3,1583.2,5.26263]
[1744922532892,1.27262538,1583.3,1583.2,1.33823]
[1744922533092,5.13162538,1583.3,1583.2,0.075]
[1744922534091,3.86847538,1583.3,1583.1,8.91106]
[1744922534394,3.23613,1583.2,1583.1,8.91106]
[1744922534693,5.23573,1583.2,1583.1,8.91106]
[1744922535695,3.9725,1583.2,1583.1,8.91106]
[1744922535995,3.9725,1583.2,1583.1,10.85586]
[1744922536693,5.23573,1583.2,1583.1,10.85586]
[1744922536892,1.26331,1583.1,1583.0,0.075]
[1744922537196,4.47111,1583.1,1583.0,0.075]
[1744922537395,11.44611,1583.1,1583.0,0.075]
[1744922538197,1.26355,1582.8,1582.7,4.434]
[1744922538397,4.47135,1582.8,1582.7,4.434]
[1744922538596,1.26363,1582.7,1582.5,8.33107538]
[1744922538796,5.25063,1582.7,1582.6,1.26365]
[1744922539196,1.26371,1582.6,1582.5,5.78221538]
[1744922539391,6.39311,1582.6,1582.5,0.08447538]
[1744922543004,2.72706239,1582.6,1582.5,1.24582543]
[1744922543207,3.99077239,1582.6,1582.5,1.32082543]
[1744922543703,3.99077239,1582.6,1582.5,3.32752543]
[1744922544203,3.99077239,1582.6,1582.5,2.0817]
[1744922544909,3.18531,1582.6,1582.5,2.0817]
[1744922545298,1.2641,1582.2,1582.1,4.436]
[1744922545501,1.2641,1582.2,1582.1,6.4699]
[1744922547003,1.2641,1582.2,1582.1,7.73401]
[1744922547208,1.27349538,1582.3,1582.2,1.26403]
[1744922547404,1.27349538,1582.3,1582.2,5.22743]
[1744922547904,1.27349538,1582.3,1582.2,3.9634]
[1744922548315,1.27349538,1582.3,1582.2,0.075]
[1744922548610,5.19939538,1582.3,1582.2,0.075]
[1744922550403,3.29339538,1582.3,1582.2,3.8573]
[1744922551910,3.29339538,1582.3,1582.2,0.075]
[1744922553211,1.26411,1582.1,1582.0,0.00947538]
[1744922553509,1.26435,1581.8,1581.7,4.0165]
[1744922553713,1.26435,1581.8,1581.7,5.8874]
[1744922553918,3.21215,1581.8,1581.7,5.8874]
[1744922554116,3.21215,1581.8,1581.7,3.9691]
[1744922555314,3.21215,1581.8,1581.7,0.075]
[1744922556717,3.21215,1581.8,1581.7,2.0776]
[1744922556917,3.21215,1581.8,1581.7,0.075]
[1744922557320,1.26467,1581.4,1581.3,3.9846]
[1744922557719,1.26467,1581.4,1581.3,5.24935]
[1744922557913,1.26467,1581.4,1581.3,3.9846]
[1744922558115,1.26467,1581.4,1581.3,5.24935]
[1744922561621,1.26467,1581.4,1581.3,3.9846]
[1744922561820,1.26467,1581.4,1581.3,5.24935]
[1744922565232,0.00947538,1581.5,1581.4,1.26467]
[1744922565423,3.2078,1581.9,1581.8,1.26435]
[1744922565723,1.26427,1581.9,1581.8,4.435]
[1744922566125,1.26427,1581.9,1581.8,5.69935]
[1744922566726,1.26427,1581.9,1581.8,7.55015]
[1744922566924,0.00947538,1582.0,1581.8,7.55012]
[1744922567127,1.27371538,1582.0,1581.9,3.16967]
[1744922567320,0.00947538,1582.0,1581.9,3.16967]
[1744922567520,1.27366538,1582.0,1581.9,3.16967]
[1744922568221,1.27366538,1582.0,1581.9,3.24467]
[1744922568526,0.00947538,1582.0,1581.9,3.24467]
[1744922569821,0.00947538,1582.0,1581.9,8.24467]
[1744922571126,0.00947538,1582.0,1581.9,3.24467]
[1744922588753,6.29141064,1582.5,1582.4,1.26387]
[1744922588959,6.29141064,1582.5,1582.4,5.69487]
[1744922589257,6.29141064,1582.5,1582.4,11.59137]
[1744922591357,8.32381064,1582.5,1582.4,11.59137]
[1744922592459,2.0324,1582.5,1582.4,11.59137]
[1744922594454,1.96707538,1582.6,1582.5,1.26379]
[1744922594658,1.96707538,1582.6,1582.5,3.15959]
[1744922595153,1.96707538,1582.6,1582.5,3.23459]
[1744922596057,0.00947538,1582.6,1582.5,3.23459]
[1744922596756,0.00947538,1582.6,1582.5,6.44239]
[1744922598256,6.29141064,1583.1,1582.5,10.1786]
[1744922598455,10.37151064,1583.1,1583.0,1.26339]
[1744922598662,10.37151064,1583.1,1583.0,5.69339]
[1744922598961,8.32941064,1583.1,1583.0,9.50119]
[1744922599155,8.32941064,1583.1,1583.0,9.57619]
[1744922600165,2.038,1583.1,1583.0,9.57619]
[1744922601265,13.42971,1583.1,1583.0,0.075]
[1744922602565,10.22191,1583.1,1583.0,0.075]
[1744922603164,13.42971,1583.1,1583.0,0.075]
[1744922603466,13.42971,1583.1,1583.0,1.33839]
[1744922603763,10.22191,1583.1,1583.0,1.33839]
[1744922604565,13.42971,1583.1,1583.0,1.33839]
[1744922605667,8.42971,1583.1,1583.0,1.33839]
[1744922606063,3.9586,1583.1,1583.0,1.33839]
[1744922606263,7.1664,1583.1,1583.0,1.33839]
[1744922606465,8.42971,1583.1,1583.0,1.33839]
[1744922606969,3.9586,1583.1,1583.0,1.33839]
[1744922607167,7.1664,1583.1,1583.0,1.33839]
[1744922607366,3.9586,1583.1,1583.0,1.33839]
[1744922608164,7.1664,1583.1,1583.0,1.33839]
[1744922608769,3.9586,1583.1,1583.0,1.33839]
[1744922608967,7.1664,1583.1,1583.0,3.36439]
[1744922609665,3.9586,1583.1,1583.0,3.36439]
[1744922611671,4.48051538,1583.2,1583.1,1.26331]
[1744922611872,0.00947538,1583.2,1583.1,3.23961]
[1744922612174,0.00947538,1583.2,1583.1,8.23961]
[1744922612365,0.00947538,1583.2,1583.1,3.23961]
[1744922613370,4.19479659,1583.4,1583.3,1.26315]
[1744922613570,4.06374735,1583.4,1583.3,8.89595]
[1744922613870,4.06374735,1583.4,1583.3,13.89595]
[1744922614073,4.06374735,1583.4,1583.3,15.75335]
[1744922616574,0.00947538,1583.5,1583.4,1.26307]
[1744922616775,0.00947538,1583.5,1583.4,3.14927]
[1744922617071,0.00947538,1583.5,1583.4,1.26307]
[1744922617275,1.92777538,1583.5,1583.4,1.33807]
[1744922617575,3.87727538,1583.5,1583.4,1.33807]
[1744922619277,3.87727538,1583.5,1583.4,3.24177]
[1744922619773,0.00947538,1583.5,1583.4,3.24177]
[1744922620170,1.86597538,1583.5,1583.4,3.24177]
[1744922620676,1.86597538,1583.5,1583.4,1.33807]
[1744922621769,1.86597538,1583.5,1583.4,3.24177]
[1744922625580,0.00947538,1583.5,1583.4,3.24177]
[1744922627880,0.00947538,1583.5,1583.4,1.33807]
[1744922628081,2.01207538,1583.5,1583.4,1.33807]
[1744922628382,4.03487538,1583.5,1583.4,1.33807]
[1744922635493,0.00947538,1583.5,1583.4,3.20797]
[1744922635786,0.00947538,1583.5,1583.4,8.20797]
[1744922635985,0.00947538,1583.5,1583.4,3.20797]
[1744922636184,0.00947538,1583.5,1583.4,8.20797]
[1744922636383,0.00947538,1583.5,1583.4,3.20797]
[1744922644391,5.38e-06,1583.5,1583.4,3.20797]
[1744922651892,2.0345,1583.9,1583.8,1.26276]
[1744922652191,9.49921064,1584.1,1584.0,1.2626]
[1744922652192,6.29141064,1584.1,1584.0,1.2626]
[1744922652897,6.29141064,1584.1,1584.0,3.2721]
[1744922653287,6.29141064,1584.1,1584.0,3.3471]
[1744922654398,6.29141064,1584.1,1584.0,3.84745795]
[1744922654593,6.29141064,1584.1,1584.0,3.3471]
[1744922657405,1.93267538,1584.2,1584.1,1.26252]
[1744922657600,1.93267538,1584.2,1584.1,7.73992]
[1744922664402,0.00947538,1584.2,1584.1,7.73992]
[1744922664599,5.38e-06,1584.2,1584.1,7.73992]
[1744922664904,2.0513,1584.5,1584.4,1.26228]
[1744922665101,6.29141064,1584.6,1584.5,1.2622]
[1744922665406,6.29141064,1584.6,1584.5,3.1417]
[1744922666005,6.29141064,1584.6,1584.5,6.3495]
[1744922666195,5.01232064,1584.6,1584.5,8.2902]
[1744922666402,5.01232064,1584.6,1584.5,10.3605]
[1744922666703,2.99116064,1584.6,1584.5,10.3605]
[1744922666907,6.4e-07,1584.6,1584.5,10.3605]
[1744922668402,7.11019208,1584.7,1584.6,1.26212]
[1744922668608,5.77662208,1584.7,1584.6,3.27532]
[1744922668809,4.39140208,1584.7,1584.6,3.27532]
[1744922669108,3.05605208,1584.7,1584.6,3.27532]
[1744922669897,0.00621549,1584.7,1584.6,3.27532]
[1744922671609,5.49e-06,1584.7,1584.6,3.27532]
[1744922674507,1.8659,1585.2,1584.6,3.27532]
[1744922674508,1.8659,1585.2,1585.1,1.26172]
[1744922674709,1.8659,1585.2,1585.1,5.67272]
[1744922675009,1.9422,1585.2,1585.1,5.67272]
[1744922675207,1.9422,1585.2,1585.1,7.57072]
[1744922675403,3.2078,1585.4,1585.3,1.26156]
[1744922675709,1.9193,1585.5,1585.4,1.26148]
[1744922675911,1.9193,1585.5,1585.4,5.67248]
[1744922676207,1.9193,1585.5,1585.4,5.74748]
[1744922676708,3.8615,1585.5,1585.4,5.74748]
[1744922677210,3.8615,1585.5,1585.4,5.67248]
[1744922677709,8.8615,1585.5,1585.4,4.41]
[1744922677910,10.7309,1585.5,1585.4,5.67148]
[1744922680713,11.9923,1585.5,1585.4,5.67148]
[1744922680901,10.7309,1585.5,1585.4,5.67148]
[1744922682209,5.7309,1585.5,1585.4,5.74648]
[1744922682514,3.8116,1585.5,1585.4,5.74648]
[1744922682702,5.1706,1585.8,1585.7,1.26124]
[1744922682904,5.16136145,1585.8,1585.7,5.67124]
[1744922684607,6.42252145,1585.8,1585.7,5.67124]
[1744922685908,15.21430145,1585.8,1585.5,1.26133]
[1744922686210,4.46915,1585.6,1585.5,5.66109145]
[1744922686608,8.19835,1585.6,1585.5,5.66109145]
[1744922687016,3.19835,1585.6,1585.5,5.66109145]
[1744922687609,6.40612,1585.6,1585.5,5.66109145]
[1744922687815,3.19832,1585.6,1585.5,5.66109145]
[1744922689316,3.19832,1585.6,1585.5,1.25209145]
[1744922689515,3.19832,1585.6,1585.5,5.66109145]
[1744922690119,6.40612,1585.6,1585.5,5.66109145]
[1744922690318,3.19832,1585.6,1585.5,5.66109145]
[1744922691317,11.40612,1585.6,1585.5,4.409]
[1744922691516,1.26156,1585.3,1585.2,0.00947538]
[1744922691711,1.26156,1585.3,1585.2,5.68002538]
[1744922692318,3.13696,1585.3,1585.2,5.68002538]
[1744922692718,4.90666,1585.3,1585.2,5.68002538]
[1744922693620,3.6451,1585.3,1585.2,5.68002538]
[1744922693919,3.2078,1585.4,1585.2,7.57257538]
[1744922694219,3.5614,1585.5,1585.4,1.26148]
[1744922694512,8.0306,1585.5,1585.4,1.26148]
[1744922694719,4.8228,1585.5,1585.4,3.08998]
[1744922695119,4.8228,1585.5,1585.4,3.16498]
[1744922695316,4.8228,1585.5,1585.4,1.9035]
[1744922695519,4.8228,1585.5,1585.4,0.075]
[1744922695819,4.8228,1585.5,1585.4,1.33648]
[1744922696224,4.8228,1585.5,1585.4,1.26148]
[1744922696415,4.8228,1585.5,1585.4,2.99618]
[1744922699527,4.8228,1585.5,1585.4,1.7347]
[1744922700424,4.8228,1585.5,1585.4,2.99618]
[1744922701025,1.26148,1585.4,1585.3,4.9407]
[1744922701325,3.00478,1585.4,1585.3,3.1436]
[1744922701523,3.00478,1585.4,1585.3,1.2615]
[1744922701720,1.26156,1585.3,1585.2,4.41447538]
[1744922701920,4.74696,1585.3,1585.2,4.41447538]
[1744922702629,3.4854,1585.3,1585.2,5.67611538]
[1744922702922,1.7433,1585.3,1585.2,5.67611538]
[1744922703121,1.26141,1585.6,1585.3,3.1539]
[1744922703321,3.00471,1585.6,1585.5,1.26135]
[1744922703524,3.00471,1585.6,1585.5,5.66635]
[1744922703825,3.00471,1585.6,1585.5,7.58685]
[1744922704232,1.26141,1585.6,1585.5,9.41225]
[1744922705331,1.26141,1585.6,1585.5,11.25215]
[1744922708135,3.2078,1585.7,1585.5,9.9908]
[1744922708428,1.26124,1585.7,1585.6,3.13981]
[1744922708636,4.46904,1585.7,1585.6,3.13981]
[1744922708939,1.26124,1585.7,1585.6,3.13981]
[1744922710337,4.46895,1585.9,1585.8,1.26109]
[1744922710543,4.45971145,1585.9,1585.8,5.66609]
[1744922710837,4.45971145,1585.9,1585.8,11.11439]
[1744922711135,4.53471145,1585.9,1585.8,11.11439]
[1744922711745,4.53471145,1585.9,1585.8,9.8533]
[1744922711941,1.26147,1585.5,1585.4,1.26141]
[1744922712148,4.46927,1585.5,1585.4,6.2058]
[1744922712646,6.37037,1585.5,1585.4,6.2058]
[1744922712840,3.16257,1585.5,1585.4,6.2058]
[1744922713952,3.16257,1585.5,1585.4,7.46728]
[1744922714248,3.23757,1585.5,1585.4,7.46728]
[1744922714746,3.23757,1585.5,1585.4,6.2058]
[1744922714956,10.20247,1585.5,1585.4,4.404]
[1744922715145,12.0946,1585.5,1585.2,4.41347538]
[1744922715455,4.46936,1585.3,1585.2,0.00947538]
[1744922716152,4.54436,1585.3,1585.2,0.00947538]
[1744922717752,3.2828,1585.3,1585.2,0.00947538]
[1744922717949,3.2828,1585.3,1585.2,3.04881538]
[1744922718152,3.2828,1585.3,1585.2,3.67177538]
[1744922718153,1.33656,1585.3,1585.2,3.67177538]
[1744922718354,3.05406,1585.3,1585.2,3.67177538]
[1744922719158,3.12906,1585.3,1585.2,3.67177538]
[1744922719746,17.30142404,1585.3,1584.7,3.2078]
[1744922720056,1.26207,1584.7,1584.6,1.26207]
[1744922720255,1.26207,1584.7,1584.6,3.17207]
[1744922720457,4.46987,1584.7,1584.6,3.17207]
[1744922720655,1.26207,1584.7,1584.6,3.17207]
[1744922721051,1.27146538,1584.8,1584.7,1.26197]
[1744922721257,1.27146538,1584.8,1584.7,5.06397]
[1744922721657,1.27146538,1584.8,1584.7,3.802]
[1744922722048,1.27146538,1584.8,1584.7,5.06404]
[1744922722253,1.27146538,1584.8,1584.7,3.802]
[1744922722450,4.47926538,1584.8,1584.7,3.802]
[1744922723367,4.47926538,1584.8,1584.5,4.41447538]
[1744922723368,1.26212,1584.6,1584.5,4.41447538]
[1744922723661,4.46992,1584.6,1584.5,6.30057538]
[1744922724263,4.46992,1584.6,1584.5,7.56277538]
[1744922724561,3.2078,1584.6,1584.5,12.56277538]
[1744922724866,1.34648538,1584.8,1584.7,1.26204]
[1744922725162,1.27143538,1584.8,1584.7,1.26204]
[1744922725660,1.27143538,1584.8,1584.7,4.82924]
[1744922725861,4.47923538,1584.8,1584.7,3.5672]
[1744922726062,4.47923538,1584.8,1584.7,1.7531]
[1744922726460,8.10753538,1584.8,1584.7,1.7531]
[1744922727553,1.26212,1584.6,1584.5,4.41447538]
[1744922727762,4.46992,1584.6,1584.5,0.00947538]
[1744922728160,6.30742,1584.6,1584.5,0.00947538]
[1744922729166,6.38242,1584.6,1584.5,0.00947538]
[1744922731262,4.46992,1584.6,1584.5,3.10177538]
[1744922731462,4.46992,1584.6,1584.5,4.89047538]
[1744922732062,4.46992,1584.6,1584.5,3.62827538]
[1744922732464,3.15559,1584.5,1584.1,87.439]
[1744922732664,3.15559,1584.5,1583.7,4.402]
[1744922732665,6.36388,1584.3,1583.7,4.402]
[1744922732860,3.2078,1584.1,1583.8,5.466]
[1744922733062,4.47037,1584.1,1584.0,1.26254]
[1744922733267,1.26257,1584.1,1584.0,1.26254]
[1744922733563,1.26257,1584.1,1584.0,3.09624]
[1744922733767,4.47037,1584.1,1584.0,7.49824]
[1744922733964,1.26257,1584.1,1584.0,7.49824]
[1744922734164,1.26257,1584.1,1584.0,7.57324]
[1744922734471,1.26249,1584.2,1584.1,1.26246]
[1744922734670,1.26249,1584.2,1584.1,6.94816]
[1744922734869,3.2078,1584.3,1584.2,1.26244]
[1744922735073,4.47016,1584.3,1584.2,1.9241]
[1744922735368,4.47016,1584.3,1584.2,1.9991]
[1744922735763,4.47016,1584.3,1584.2,3.26154]
[1744922736159,1.26236,1584.3,1584.2,1.9991]
[1744922740075,1.26236,1584.3,1584.2,3.26154]
[1744922740274,1.26231,1584.4,1584.3,1.26228]
[1744922740571,1.26231,1584.4,1584.3,3.10218]
[1744922742174,1.26231,1584.4,1584.3,7.50518]
[1744922744577,3.2078,1584.5,1584.4,1.26228]
[1744922744875,1.26218,1584.6,1584.4,5.6073]
[1744922745072,1.2622,1584.5,1584.4,5.6073]
[1744922745378,1.2622,1584.5,1584.4,3.6982]
[1744922745577,3.1056,1584.5,1584.4,3.6982]
[1744922745780,1.26228,1584.4,1584.3,4.403]
[1744922745978,6.31348,1584.4,1584.3,4.403]
[1744922746179,1.26236,1584.3,1584.2,3.6982]
[1744922746379,4.47014,1584.4,1584.2,3.6982]
[1744922746582,1.26234,1584.4,1584.3,1.26236]
[1744922747382,1.26236,1584.3,1584.2,5.03557]
[1744922748279,3.2078,1584.4,1584.3,1.2623]
[1744922748484,1.8005,1584.7,1584.4,1.26228]
[1744922748485,1.26223,1584.5,1584.4,1.26228]
[1744922748784,4.47926538,1584.8,1584.7,1.26204]
[1744922749079,0.00947538,1584.8,1584.7,5.74004]
[1744922749277,6.29343901,1585.0,1584.8,1.26196]
[1744922749480,6.29343901,1585.0,1584.8,4.46976]
[1744922749675,6.29343901,1585.0,1584.8,9.46976]
[1744922750081,6.29343901,1585.0,1584.8,6.26196]
[1744922750476,6.30291439,1585.0,1584.8,6.26196]
[1744922750677,7.56475439,1585.0,1584.8,1.26196]
[1744922750877,7.56475439,1585.0,1584.8,3.04496]
[1744922751383,5.4450917,1584.9,1584.8,1.783]
[1744922752084,1.26188,1584.9,1584.8,1.783]
[1744922752281,0.00947538,1585.0,1584.7,4.403]
[1744922752282,1.26196,1584.8,1584.7,4.403]
[1744922752485,6.34816,1584.8,1584.7,4.403]
[1744922753387,6.42316,1584.8,1584.7,4.403]
[1744922753582,4.54476,1584.8,1584.7,4.403]
[1744922753986,1.33696,1584.8,1584.7,5.66504]
[1744922754186,1.26196,1584.8,1584.7,5.66504]
[1744922755086,1.26195,1584.9,1584.8,1.26194]
[1744922755290,3.21727538,1585.0,1584.7,4.403]
[1744922755591,1.26188,1584.9,1584.8,1.2619]
[1744922756292,1.26188,1584.9,1584.8,3.0393]
[1744922757387,3.21727538,1585.0,1584.9,1.26188]
[1744922757586,3.21727538,1585.0,1584.9,2.99358]
[1744922758388,0.00947538,1585.0,1584.9,2.99358]
[1744922760795,1.27127538,1585.0,1584.9,2.99358]
[1744922761289,0.00947538,1585.0,1584.9,2.99358]
[1744922764397,0.00947538,1585.0,1584.9,4.85838]
[1744922765099,9.2063117,1585.4,1585.3,1.26156]
[1744922765394,2.3700017,1585.4,1585.3,9.46936]
[1744922765592,0.9327417,1585.4,1585.3,9.46936]
[1744922765787,8.3681137,1585.6,1585.4,1.26148]
[1744922765993,8.3681137,1585.6,1585.5,1.2614]
[1744922766192,8.3681137,1585.6,1585.5,8.8682]
[1744922766394,8.3681137,1585.6,1585.5,13.8682]
[1744922766598,8.3681137,1585.6,1585.5,10.7124]
[1744922766797,8.3681137,1585.6,1585.5,7.5046]
[1744922768189,11.5759137,1585.6,1585.5,7.5046]
[1744922768393,8.3681137,1585.6,1585.5,7.5046]
[1744922768595,9.6294337,1585.6,1585.5,6.2432]
[1744922768801,19.7226337,1585.6,1585.5,4.399]
[1744922769098,1.26156,1585.3,1585.2,4.398]
[1744922769297,1.26178,1585.1,1585.0,4.398]
[1744922769503,1.2618,1585.0,1584.9,1.8643]
[1744922769692,1.8854,1585.0,1584.7,4.40747538]
[1744922769894,3.14726,1585.0,1584.8,11.54179464]
[1744922770095,1.9604,1585.0,1584.9,1.26188]
[1744922770298,1.9604,1585.0,1584.9,3.12618]
[1744922770497,3.2222,1585.0,1584.8,9.67752464]
[1744922770800,3.2222,1585.0,1584.9,1.26188]
[1744922771197,1.9604,1585.0,1584.9,1.26188]
[1744922771390,0.075,1585.0,1584.9,2.99808]
[1744922771597,1.3368,1585.0,1584.9,2.99808]
[1744922772002,3.0491,1585.0,1584.9,2.99808]
[1744922772202,2.9741,1585.0,1584.9,2.99808]
[1744922772900,1.26188,1584.9,1584.8,9.67750464]
[1744922773090,2.97418,1584.9,1584.8,9.67750464]
[1744922773292,1.7123,1584.9,1584.8,9.67750464]
[1744922773495,1.7123,1584.9,1584.8,11.41370464]
[1744922773802,2.97418,1584.9,1584.8,11.41370464]
[1744922774005,1.7123,1584.9,1584.8,11.41370464]
[1744922774192,3.15118,1585.1,1585.0,1.2618]
[1744922774396,1.2618,1585.0,1584.9,3.03202]
[1744922774597,6.36336,1585.2,1585.1,1.26172]
[1744922774796,6.8948,1585.2,1585.0,3.03193]
[1744922774991,6.8948,1585.2,1584.8,7.5529]
[1744922775196,4.4696,1585.0,1584.9,3.03208]
[1744922775402,3.2078,1585.0,1584.9,3.03208]
[1744922775697,1.2618,1585.0,1584.9,3.03204]
[1744922775902,3.0549,1585.0,1584.9,3.03204]
[1744922776699,3.15557,1585.2,1585.0,1.2618]
[1744922776903,3.15557,1585.2,1585.1,1.26172]
[1744922777098,4.94867,1585.2,1585.1,1.26172]
[1744922777500,1.7931,1585.2,1585.1,5.65972]
[1744922777705,3.6093,1585.4,1585.3,1.26156]
[1744922777906,1.26156,1585.3,1585.2,3.08387]
[1744922778209,3.11066,1585.3,1585.2,3.08394]
[1744922778406,1.26164,1585.2,1585.1,6.2258]
[1744922778700,1.26161,1585.3,1585.2,1.26164]
[1744922778894,3.11071,1585.3,1585.2,3.08394]
[1744922779100,3.18571,1585.3,1585.2,3.08394]
[1744922779404,1.26164,1585.2,1585.1,7.48746]
[1744922779602,0.075,1585.3,1585.2,1.26164]
[1744922779805,1.33656,1585.3,1585.2,3.08394]
[1744922780005,1.26164,1585.2,1585.1,7.48746]
[1744922780304,3.11074,1585.2,1585.1,7.48746]
[1744922780502,6.31854,1585.2,1585.1,5.65972]
[1744922780806,3.11074,1585.2,1585.1,5.65972]
[1744922781006,3.2078,1585.5,1585.1,5.65972]
[1744922781202,3.06742,1585.4,1585.3,1.26148]
[1744922781507,1.26145,1585.5,1585.4,1.26148]
[1744922781894,1.26145,1585.5,1585.4,4.398]
[1744922782103,3.14235,1585.5,1585.4,5.65948]
[1744922782304,3.14235,1585.5,1585.4,4.398]
[1744922782504,3.14235,1585.5,1585.4,5.65948]
[1744922782705,3.14235,1585.5,1585.4,4.398]
[1744922782904,1.2617,1585.2,1585.1,1.26165]
[1744922783096,1.2617,1585.2,1585.1,5.65965]
[1744922784006,4.88742,1585.3,1585.2,1.26164]
[1744922784404,1.26146,1585.5,1585.4,1.26148]
[1744922784600,8.19853,1585.5,1585.1,12.55085]
[1744922784805,1.26158,1585.4,1585.3,1.26153]
[1744922785003,3.09878,1585.4,1585.3,1.26153]
[1744922785403,1.26161,1585.3,1585.2,1.26156]
[1744922786406,1.26164,1585.2,1585.1,7.45044]
[1744922787114,3.16614,1585.2,1585.1,5.65964]
[1744922787610,1.9045,1585.2,1585.1,1.26164]
[1744922787806,3.16614,1585.2,1585.1,1.26164]
[1744922788010,1.9045,1585.2,1585.1,5.65964]
[1744922788211,1.8295,1585.2,1585.1,5.65964]
[1744922788712,3.02672,1585.3,1585.2,1.26164]
[1744922789019,1.26164,1585.2,1585.1,5.65968]
[1744922789210,1.26175,1585.1,1584.9,12.6445]
[1744922789411,3.11205,1585.1,1585.0,1.26174]
[1744922789915,1.8503,1585.1,1585.0,1.26174]
[1744922790320,3.02672,1585.3,1585.0,3.1545]
[1744922790514,3.11183,1585.4,1585.3,1.26156]
[1744922790916,1.26156,1585.3,1585.2,5.65958]
[1744922791105,1.26156,1585.3,1585.2,7.54108]
[1744922791916,1.26148,1585.4,1585.3,1.26156]
[1744922792119,8.06367,1585.5,1585.4,1.26148]
[1744922792417,9.91397,1585.5,1585.4,1.26148]
[1744922792811,8.6525,1585.5,1585.4,1.26148]
[1744922793118,9.9139,1585.5,1585.4,1.26148]
[1744922794718,9.9139,1585.5,1585.4,3.06808]
[1744922795311,1.26155,1585.4,1585.3,1.26149]
[1744922795510,3.03855,1585.4,1585.3,1.26149]
[1744922796021,3.03848,1585.4,1585.3,1.26149]
[1744922796318,3.03848,1585.4,1585.3,3.01639]
[1744922797020,4.4692,1585.5,1585.4,1.26148]
[1744922797222,4.4692,1585.5,1585.4,3.01638]
[1744922797614,6.2462,1585.5,1585.4,3.01638]
[1744922798010,6.9898237,1585.7,1585.6,1.26132]
[1744922798216,10.1976237,1585.7,1585.6,5.65632]
[1744922798517,6.9898237,1585.7,1585.6,5.65632]
[1744922798717,6.9898237,1585.7,1585.6,7.49732]
[1744922799725,12.53325953,1586.1,1586.0,1.261]
[1744922800018,12.52402098,1586.1,1586.0,5.656]
[1744922800322,13.78494098,1586.1,1586.0,5.656]
[1744922800522,10.84691098,1586.1,1586.0,10.656]
[1744922800819,1.8891405,1586.2,1586.1,1.26092]
[1744922801124,3.2078,1586.8,1586.7,1.26043]
[1744922801323,4.9959,1586.8,1586.4,4.395]
[1744922801622,3.04861,1586.7,1586.4,4.395]
[1744922801822,3.5947,1586.6,1586.4,5.65562]
[1744922802124,1.7929,1586.5,1586.4,5.65562]
[1744922802325,1.7929,1586.5,1586.4,5.64638145]
[1744922802626,1.7929,1586.5,1586.4,4.38576145]
[1744922802627,3.05351,1586.5,1586.4,4.38576145]
[1744922803123,1.26071,1586.4,1586.3,4.395]
[1744922803323,6.26141,1586.4,1586.3,4.395]
[1744922803726,10.0007,1586.4,1586.0,6.1528]
[1744922803913,4.46872,1586.1,1586.0,4.394]
[1744922804113,3.2828,1586.1,1586.0,5.655]
[1744922804318,0.075,1586.1,1586.0,7.4008]
[1744922804519,0.075,1586.1,1586.0,14.1596]
[1744922804720,0.075,1586.1,1586.0,9.1596]
[1744922805027,4.54372,1586.1,1586.0,4.394]
[1744922805219,1.33594,1586.1,1585.9,1.27049538]
[1744922805422,3.6714,1586.0,1585.9,1.27049538]
[1744922805617,3.6714,1586.0,1585.9,3.09079538]
[1744922806024,0.075,1586.1,1586.0,1.261]
[1744922806318,8.23523,1586.6,1586.1,1.26087]
[1744922806319,4.46857,1586.3,1586.1,1.26087]
[1744922806522,1.8182,1586.2,1586.1,1.26087]
[1744922806924,1.8182,1586.2,1586.0,7.47524]
[1744922806925,3.07904,1586.2,1586.0,7.47524]
[1744922807125,3.2078,1586.1,1586.0,7.47524]
[1744922807726,4.46872,1586.1,1586.0,4.394]
[1744922807931,1.261,1586.0,1585.9,0.00947538]
[1744922808132,3.1899,1586.0,1585.9,0.00947538]
[1744922809337,0.075,1586.0,1585.9,2.98215538]
[1744922809633,1.9289,1586.0,1585.9,2.98215538]
[1744922810036,5.1367,1586.0,1585.9,4.394]
[1744922810230,5.1367,1586.0,1585.7,3.15309]
[1744922810231,5.0617,1586.0,1585.8,1.26113]
[1744922810427,5.00678,1585.9,1585.5,1.26134]
[1744922810737,1.26128,1585.7,1585.6,1.26128]
[1744922811234,4.81228,1585.7,1585.6,1.26128]
[1744922811430,3.551,1585.7,1585.5,0.00947538]
[1744922811633,3.044,1585.7,1585.6,1.26132]
[1744922812029,3.21727538,1585.8,1585.7,1.26124]
[1744922812230,0.00947538,1585.8,1585.7,5.73024]
[1744922812438,3.21727538,1585.8,1585.7,5.73024]
[1744922812841,0.00947538,1585.8,1585.7,5.73024]
[1744922813044,3.21727538,1585.8,1585.7,5.73024]
[1744922813243,3.21727538,1585.8,1585.7,7.46814]
[1744922813640,3.21727538,1585.8,1585.7,9.36074]
[1744922813944,0.00947538,1585.8,1585.7,9.36074]
[1744922814145,3.21727538,1585.8,1585.7,9.43574]
[1744922815643,0.00947538,1585.8,1585.7,9.43574]
[1744922815841,0.00947538,1585.8,1585.7,14.43574]
[1744922816035,5.38e-06,1585.8,1585.7,17.64354]
[1744922816237,3.2078,1586.5,1586.4,1.26069]
[1744922816436,3.2078,1586.5,1586.3,5.6547]
[1744922816636,1.26069,1586.4,1586.3,5.6547]
[1744922817146,4.46845,1586.5,1586.4,1.26069]
[1744922817346,4.46845,1586.5,1586.3,5.65471]